[Event "Early-Titled-Tuesday-Blitz-February-13-2024"]
[Site "Chess.com"]
[Date "2024.02.13"]
[Round "3"]
[White "kakarot_001"]
[Black "Lion_DL"]
[Result "1-0"]
[WhiteElo "2648"]
[BlackElo "2462"]
[TimeControl "180+1"]
[EndTime "8:32:23 PST"]
[Termination "kakarot_001 won by resignation"]

1. e4 {[%clk 0:02:26.8]} 1... c5 {[%clk 0:02:58.5]} 2. Nf3 {[%clk 0:02:26.1]}
2... e6 {[%clk 0:02:59.1]} 3. b3 {[%clk 0:02:22.7]} 3... b6 {[%clk 0:02:58.2]}
4. d4 {[%clk 0:02:21.4]} 4... cxd4 {[%clk 0:02:55.9]} 5. Nxd4 {[%clk 0:02:22.3]}
5... Bb7 {[%clk 0:02:55.7]} 6. Bd3 {[%clk 0:02:22.9]} 6... a6 {[%clk 0:02:49.7]}
7. Bb2 {[%clk 0:02:22]} 7... d6 {[%clk 0:02:49.2]} 8. O-O {[%clk 0:02:22.2]}
8... Nf6 {[%clk 0:02:49.7]} 9. Qe2 {[%clk 0:02:21.7]} 9... Nbd7 {[%clk
0:02:49.9]} 10. c4 {[%clk 0:02:22]} 10... Qc7 {[%clk 0:02:49.2]} 11. Nc3 {[%clk
0:02:22.1]} 11... Be7 {[%clk 0:02:49.7]} 12. Rac1 {[%clk 0:02:22.5]} 12... O-O
{[%clk 0:02:49.4]} 13. Rfd1 {[%clk 0:02:22.7]} 13... Rfe8 {[%clk 0:02:48]} 14.
f3 {[%clk 0:02:22.8]} 14... Rac8 {[%clk 0:02:46.9]} 15. Kh1 {[%clk 0:02:23.3]}
15... Qb8 {[%clk 0:02:45.9]} 16. Qf2 {[%clk 0:02:21.9]} 16... d5 {[%clk
0:02:36.9]} 17. cxd5 {[%clk 0:02:18.5]} 17... exd5 {[%clk 0:02:37.8]} 18. exd5
{[%clk 0:02:17.4]} 18... Nxd5 {[%clk 0:02:37.4]} 19. Nxd5 {[%clk 0:02:16.8]}
19... Bxd5 {[%clk 0:02:38.3]} 20. Bxa6 {[%clk 0:02:13.4]} 20... Rxc1 {[%clk
0:02:32.6]} 21. Rxc1 {[%clk 0:02:14.3]} 21... Bc5 {[%clk 0:02:22.7]} 22. Bb5
{[%clk 0:01:43.9]} 22... Rd8 {[%clk 0:02:04.2]} 23. Qh4 {[%clk 0:01:37.4]} 23...
Ne5 {[%clk 0:01:35.8]} 24. Qg3 {[%clk 0:00:51.9]} 24... Ng6 {[%clk 0:00:43.8]}
25. Qxb8 {[%clk 0:00:44.9]} 25... Rxb8 {[%clk 0:00:44.7]} 26. Nf5 {[%clk
0:00:44.8]} 26... f6 {[%clk 0:00:41.3]} 27. Ng3 {[%clk 0:00:20.9]} 27... Nf4
{[%clk 0:00:32.6]} 28. Ne4 {[%clk 0:00:17.9]} 28... Be3 {[%clk 0:00:23.2]} 29.
Re1 {[%clk 0:00:14.6]} 29... Bc5 {[%clk 0:00:19.8]} 30. Nxc5 {[%clk 0:00:13.6]}
30... bxc5 {[%clk 0:00:20.7]} 31. Bf1 {[%clk 0:00:11.3]} 31... Ra8 {[%clk
0:00:20.2]} 32. Bc1 {[%clk 0:00:07.2]} 32... Ne6 {[%clk 0:00:18.6]} 33. Rd1
{[%clk 0:00:07.6]} 33... Bb7 {[%clk 0:00:16.6]} 34. Bc4 {[%clk 0:00:06.5]} 34...
Bc8 {[%clk 0:00:14.8]} 35. Rd8+ {[%clk 0:00:03.9]} 35... Kf7 {[%clk 0:00:14.4]}
36. a4 {[%clk 0:00:03.8]} 36... Ke7 {[%clk 0:00:14]} 37. Rd1 {[%clk 0:00:03.7]}
37... Ba6 {[%clk 0:00:13.7]} 38. Bxa6 {[%clk 0:00:02.8]} 38... Rxa6 {[%clk
0:00:14.6]} 39. Be3 {[%clk 0:00:03.4]} 39... Rb6 {[%clk 0:00:14.6]} 40. Rb1
{[%clk 0:00:04.1]} 40... c4 {[%clk 0:00:14.4]} 41. Bxb6 {[%clk 0:00:03.8]} 1-0

[Event "Early-Titled-Tuesday-Blitz-February-13-2024"]
[Site "Chess.com"]
[Date "2024.02.13"]
[Round "3"]
[White "WiktoriaPOL"]
[Black "sharkarton"]
[Result "0-1"]
[WhiteElo "2266"]
[BlackElo "2538"]
[TimeControl "180+1"]
[EndTime "8:32:23 PST"]
[Termination "sharkarton won by checkmate"]

1. c4 {[%clk 0:03:00.9]} 1... e5 {[%clk 0:02:55.4]} 2. Nc3 {[%clk 0:03:00.8]}
2... Nf6 {[%clk 0:02:43.3]} 3. Nf3 {[%clk 0:03:01.1]} 3... e4 {[%clk 0:02:41]}
4. Ng5 {[%clk 0:03:00]} 4... b6 {[%clk 0:02:20.1]} 5. Ngxe4 {[%clk 0:02:59.2]}
5... Bb7 {[%clk 0:02:20.7]} 6. Nxf6+ {[%clk 0:02:58.9]} 6... Qxf6 {[%clk
0:02:21.6]} 7. e4 {[%clk 0:02:55.6]} 7... Bc5 {[%clk 0:02:13.1]} 8. Qe2 {[%clk
0:02:51.8]} 8... Nc6 {[%clk 0:02:09.8]} 9. d3 {[%clk 0:02:49.2]} 9... Nd4 {[%clk
0:01:52.3]} 10. Qd2 {[%clk 0:02:34]} 10... c6 {[%clk 0:01:42.1]} 11. Rb1 {[%clk
0:02:28.6]} 11... a5 {[%clk 0:01:01.8]} 12. b3 {[%clk 0:02:18.6]} 12... O-O
{[%clk 0:00:43.2]} 13. Bb2 {[%clk 0:02:17.7]} 13... d5 {[%clk 0:00:41.7]} 14.
Ne2 {[%clk 0:02:00.2]} 14... dxe4 {[%clk 0:00:26.1]} 15. Nxd4 {[%clk 0:01:51.2]}
15... Bxd4 {[%clk 0:00:24.7]} 16. dxe4 {[%clk 0:01:49.9]} 16... Rad8 {[%clk
0:00:23.5]} 17. Bxd4 {[%clk 0:01:41.1]} 17... Rxd4 {[%clk 0:00:21.9]} 18. Qe3
{[%clk 0:01:39.2]} 18... c5 {[%clk 0:00:18.7]} 19. f3 {[%clk 0:01:38.7]} 19...
Re8 {[%clk 0:00:18.6]} 20. Be2 {[%clk 0:01:34.6]} 20... Bxe4 {[%clk 0:00:14.6]}
21. O-O {[%clk 0:01:30.9]} 21... Bc6 {[%clk 0:00:10.7]} 22. Qf2 {[%clk 0:01:28]}
22... Rd2 {[%clk 0:00:10.6]} 23. Rfe1 {[%clk 0:01:25.7]} 23... Rxa2 {[%clk
0:00:09.5]} 24. Rbd1 {[%clk 0:01:18.1]} 24... Qb2 {[%clk 0:00:07.6]} 25. Rd6
{[%clk 0:01:05.3]} 25... g6 {[%clk 0:00:05.9]} 26. Kf1 {[%clk 0:00:55.6]} 26...
Bb7 {[%clk 0:00:04.2]} 27. Rxb6 {[%clk 0:00:53.9]} 27... Bc8 {[%clk 0:00:04.2]}
28. Rb5 {[%clk 0:00:43.6]} 28... Bf5 {[%clk 0:00:04.3]} 29. Rxc5 {[%clk
0:00:03.5]} 29... Bd3 {[%clk 0:00:04.1]} 30. Rd5 {[%clk 0:00:02]} 30... Bxe2+
{[%clk 0:00:04.2]} 31. Kg1 {[%clk 0:00:02.5]} 31... Ra1 {[%clk 0:00:02.1]} 32.
g3 {[%clk 0:00:01.5]} 32... Rxe1+ {[%clk 0:00:01.7]} 33. Qxe1 {[%clk 0:00:02.2]}
33... Qc2 {[%clk 0:00:02.5]} 34. Rd4 {[%clk 0:00:02.1]} 34... Re6 {[%clk
0:00:02.4]} 35. Re4 {[%clk 0:00:02.6]} 35... Rxe4 {[%clk 0:00:02.3]} 36. fxe4
{[%clk 0:00:03.5]} 36... Qxe4 {[%clk 0:00:02.7]} 37. Qd2 {[%clk 0:00:04]} 37...
Bd3 {[%clk 0:00:02.9]} 38. Qc3 {[%clk 0:00:04.1]} 38... Qe2 {[%clk 0:00:03.6]}
39. Qxa5 {[%clk 0:00:03.4]} 39... Qf1# {[%clk 0:00:04]} 0-1

[Event "Early-Titled-Tuesday-Blitz-February-13-2024"]
[Site "Chess.com"]
[Date "2024.02.13"]
[Round "3"]
[White "HalfIsCrayfish"]
[Black "DarkAlekhine"]
[Result "0-1"]
[WhiteElo "2588"]
[BlackElo "2817"]
[TimeControl "180+1"]
[EndTime "8:32:24 PST"]
[Termination "DarkAlekhine won by checkmate"]

1. d4 {[%clk 0:03:00.9]} 1... Nf6 {[%clk 0:02:58.9]} 2. c4 {[%clk 0:03:01.5]}
2... e6 {[%clk 0:02:59.3]} 3. Nf3 {[%clk 0:03:01.9]} 3... b6 {[%clk 0:02:59.3]}
4. g3 {[%clk 0:02:59.4]} 4... Ba6 {[%clk 0:02:59.4]} 5. b3 {[%clk 0:02:59.1]}
5... Bb4+ {[%clk 0:03:00]} 6. Bd2 {[%clk 0:02:59.7]} 6... Be7 {[%clk 0:03:00.6]}
7. Bg2 {[%clk 0:02:59.6]} 7... d5 {[%clk 0:02:59.8]} 8. Bc3 {[%clk 0:02:52.7]}
8... O-O {[%clk 0:02:53.5]} 9. Nbd2 {[%clk 0:02:45.5]} 9... Nbd7 {[%clk
0:02:52]} 10. O-O {[%clk 0:02:44.7]} 10... Bb7 {[%clk 0:02:52.3]} 11. Ne5 {[%clk
0:02:31.4]} 11... c5 {[%clk 0:02:44.1]} 12. e3 {[%clk 0:02:23.6]} 12... Rc8
{[%clk 0:02:42.6]} 13. Qe2 {[%clk 0:02:17.8]} 13... Qc7 {[%clk 0:02:30.5]} 14.
f4 {[%clk 0:01:50.9]} 14... dxc4 {[%clk 0:02:23.1]} 15. bxc4 {[%clk 0:01:44.5]}
15... cxd4 {[%clk 0:02:09]} 16. exd4 {[%clk 0:01:42.6]} 16... Bxg2 {[%clk
0:02:09.1]} 17. Qxg2 {[%clk 0:01:41.5]} 17... b5 {[%clk 0:02:09.4]} 18. Bb2
{[%clk 0:01:19.6]} 18... bxc4 {[%clk 0:02:07.9]} 19. Ndxc4 {[%clk 0:01:19.6]}
19... Nxe5 {[%clk 0:01:57.1]} 20. Nxe5 {[%clk 0:01:20.5]} 20... Qc2 {[%clk
0:01:25.7]} 21. Rf2 {[%clk 0:01:16.1]} 21... Qe4 {[%clk 0:01:26.3]} 22. Qxe4
{[%clk 0:01:06.1]} 22... Nxe4 {[%clk 0:01:27.2]} 23. Re2 {[%clk 0:01:04.5]}
23... Nf6 {[%clk 0:01:25.5]} 24. Rc1 {[%clk 0:01:00.9]} 24... Rxc1+ {[%clk
0:01:24.3]} 25. Bxc1 {[%clk 0:01:01.8]} 25... Rc8 {[%clk 0:01:23.5]} 26. Bb2
{[%clk 0:01:02.2]} 26... Nd5 {[%clk 0:01:23.4]} 27. Kf2 {[%clk 0:01:01.1]} 27...
f6 {[%clk 0:01:21.7]} 28. Nd3 {[%clk 0:00:58.5]} 28... Kf7 {[%clk 0:01:22.2]}
29. Ke1 {[%clk 0:00:46.6]} 29... Rc4 {[%clk 0:01:19.7]} 30. Kd1 {[%clk
0:00:39.3]} 30... Ra4 {[%clk 0:01:19.1]} 31. Ba1 {[%clk 0:00:36.5]} 31... h5
{[%clk 0:00:42.8]} 32. h4 {[%clk 0:00:35.9]} 32... Bd6 {[%clk 0:00:34]} 33. Ke1
{[%clk 0:00:36]} 33... Ne7 {[%clk 0:00:30.2]} 34. Kf2 {[%clk 0:00:34.5]} 34...
Nf5 {[%clk 0:00:29.1]} 35. Nc5 {[%clk 0:00:29.8]} 35... Bxc5 {[%clk 0:00:26.6]}
36. dxc5 {[%clk 0:00:29.9]} 36... Rc4 {[%clk 0:00:18.7]} 37. Rb2 {[%clk
0:00:30.1]} 37... Rxc5 {[%clk 0:00:17.9]} 38. Rb7+ {[%clk 0:00:30.1]} 38... Kg6
{[%clk 0:00:17.2]} 39. Rxa7 {[%clk 0:00:31]} 39... Rc1 {[%clk 0:00:17.2]} 40. a4
{[%clk 0:00:18.5]} 40... Rxa1 {[%clk 0:00:17.2]} 41. a5 {[%clk 0:00:19.4]} 41...
Ra2+ {[%clk 0:00:17.2]} 42. Kf3 {[%clk 0:00:19.3]} 42... Ra3+ {[%clk 0:00:17.6]}
43. Kf2 {[%clk 0:00:19.9]} 43... Nxg3 {[%clk 0:00:17.5]} 44. Ra8 {[%clk
0:00:19.4]} 44... Ne4+ {[%clk 0:00:17.1]} 45. Kg2 {[%clk 0:00:19.2]} 45... Kf5
{[%clk 0:00:17.4]} 46. a6 {[%clk 0:00:19.6]} 46... Kxf4 {[%clk 0:00:17.7]} 47.
a7 {[%clk 0:00:20.2]} 47... e5 {[%clk 0:00:17.6]} 48. Kh2 {[%clk 0:00:19.5]}
48... f5 {[%clk 0:00:17.9]} 49. Kg2 {[%clk 0:00:19.8]} 49... Kg4 {[%clk
0:00:16.7]} 50. Kh2 {[%clk 0:00:18.7]} 50... Ra2+ {[%clk 0:00:17]} 51. Kh1
{[%clk 0:00:19]} 51... Kg3 {[%clk 0:00:15.3]} 52. Rg8 {[%clk 0:00:17.3]} 52...
Ra1# {[%clk 0:00:15.6]} 0-1

[Event "Early-Titled-Tuesday-Blitz-February-13-2024"]
[Site "Chess.com"]
[Date "2024.02.13"]
[Round "3"]
[White "ProfessorChess101"]
[Black "MaxLeto"]
[Result "1-0"]
[WhiteElo "2811"]
[BlackElo "2510"]
[TimeControl "180+1"]
[EndTime "8:32:24 PST"]
[Termination "ProfessorChess101 won by checkmate"]

1. d4 {[%clk 0:03:00.9]} 1... d5 {[%clk 0:02:58.9]} 2. c4 {[%clk 0:03:00.6]}
2... e6 {[%clk 0:02:59.3]} 3. Nf3 {[%clk 0:02:59.8]} 3... Nf6 {[%clk 0:02:59.7]}
4. Nc3 {[%clk 0:02:59.9]} 4... Be7 {[%clk 0:03:00.2]} 5. Bf4 {[%clk 0:02:59.8]}
5... O-O {[%clk 0:03:00.5]} 6. e3 {[%clk 0:03:00.5]} 6... b6 {[%clk 0:02:58.9]}
7. Be2 {[%clk 0:02:58.1]} 7... Bb7 {[%clk 0:02:58.7]} 8. O-O {[%clk 0:02:57.7]}
8... c5 {[%clk 0:02:50.7]} 9. cxd5 {[%clk 0:02:56.4]} 9... Nxd5 {[%clk
0:02:50.6]} 10. Nxd5 {[%clk 0:02:56.1]} 10... Qxd5 {[%clk 0:02:51.2]} 11. a3
{[%clk 0:02:51.9]} 11... Nd7 {[%clk 0:02:42.9]} 12. dxc5 {[%clk 0:02:48]} 12...
Nxc5 {[%clk 0:02:43.8]} 13. b4 {[%clk 0:02:41.5]} 13... Ne4 {[%clk 0:02:36.1]}
14. Rc1 {[%clk 0:02:34]} 14... a5 {[%clk 0:01:33.7]} 15. Rc7 {[%clk 0:02:31]}
15... Bf6 {[%clk 0:01:07.9]} 16. Bc4 {[%clk 0:02:16.4]} 16... Qxd1 {[%clk
0:01:02.1]} 17. Rxd1 {[%clk 0:02:17.3]} 17... Nc3 {[%clk 0:01:02.8]} 18. Rc1
{[%clk 0:01:27.2]} 18... Bd5 {[%clk 0:00:20]} 19. Bf1 {[%clk 0:00:53.1]} 19...
Rfc8 {[%clk 0:00:06]} 20. Nd4 {[%clk 0:00:31.4]} 20... Rxc7 {[%clk 0:00:05.6]}
21. Bxc7 {[%clk 0:00:32]} 21... Rc8 {[%clk 0:00:05.8]} 22. Rxc3 {[%clk
0:00:31.8]} 22... axb4 {[%clk 0:00:04.8]} 23. axb4 {[%clk 0:00:31.8]} 23... Be5
{[%clk 0:00:04.9]} 24. Bxe5 {[%clk 0:00:26]} 24... Rxc3 {[%clk 0:00:05.1]} 25.
f3 {[%clk 0:00:14.4]} 25... f6 {[%clk 0:00:05.2]} 26. Bd6 {[%clk 0:00:12.7]}
26... Rxe3 {[%clk 0:00:05.1]} 27. Bc7 {[%clk 0:00:11.8]} 27... b5 {[%clk
0:00:02.5]} 28. Bxb5 {[%clk 0:00:10]} 28... e5 {[%clk 0:00:02.7]} 29. Nf5 {[%clk
0:00:08.8]} 29... Re1+ {[%clk 0:00:01.8]} 30. Kf2 {[%clk 0:00:09.4]} 30... Rd1
{[%clk 0:00:02.7]} 31. Ne7+ {[%clk 0:00:08.9]} 31... Kf7 {[%clk 0:00:03]} 32.
Nxd5 {[%clk 0:00:09.3]} 32... Rd2+ {[%clk 0:00:02.2]} 33. Ke3 {[%clk 0:00:09.2]}
33... Rxg2 {[%clk 0:00:02.6]} 34. Bc4 {[%clk 0:00:09.5]} 34... Kg6 {[%clk
0:00:02.9]} 35. b5 {[%clk 0:00:09.9]} 35... Rxh2 {[%clk 0:00:03.1]} 36. b6
{[%clk 0:00:10.3]} 36... Rb2 {[%clk 0:00:04]} 37. Ba6 {[%clk 0:00:09.4]} 37...
h5 {[%clk 0:00:03.6]} 38. b7 {[%clk 0:00:09.7]} 38... h4 {[%clk 0:00:03.4]} 39.
b8=Q {[%clk 0:00:07.6]} 39... Rxb8 {[%clk 0:00:04.3]} 40. Bxb8 {[%clk
0:00:08.2]} 40... Kg5 {[%clk 0:00:04.4]} 41. Kf2 {[%clk 0:00:08.5]} 41... f5
{[%clk 0:00:04.3]} 42. Bxe5 {[%clk 0:00:07.5]} 42... g6 {[%clk 0:00:04.1]} 43.
Bf4+ {[%clk 0:00:07.5]} 43... Kh5 {[%clk 0:00:04.2]} 44. Nf6# {[%clk 0:00:08]}
1-0

[Event "Early-Titled-Tuesday-Blitz-February-13-2024"]
[Site "Chess.com"]
[Date "2024.02.13"]
[Round "3"]
[White "MelihKaanCan"]
[Black "Gerodot71"]
[Result "0-1"]
[WhiteElo "2383"]
[BlackElo "2607"]
[TimeControl "180+1"]
[EndTime "8:32:25 PST"]
[Termination "Gerodot71 won by resignation"]

1. e4 {[%clk 0:02:32]} 1... c5 {[%clk 0:02:59.1]} 2. Nc3 {[%clk 0:02:31.4]} 2...
d6 {[%clk 0:02:59.2]} 3. g3 {[%clk 0:02:28.9]} 3... Nc6 {[%clk 0:02:57]} 4. Bg2
{[%clk 0:02:29.4]} 4... g6 {[%clk 0:02:55.8]} 5. d3 {[%clk 0:02:29.6]} 5... Bg7
{[%clk 0:02:55]} 6. f4 {[%clk 0:02:29.6]} 6... h5 {[%clk 0:02:54.9]} 7. Nf3
{[%clk 0:02:28.1]} 7... Rb8 {[%clk 0:02:52.3]} 8. a4 {[%clk 0:02:27.6]} 8... a6
{[%clk 0:02:52.2]} 9. Be3 {[%clk 0:02:26.9]} 9... Nd4 {[%clk 0:02:51.7]} 10. e5
{[%clk 0:02:26.5]} 10... Nxf3+ {[%clk 0:02:45.6]} 11. Qxf3 {[%clk 0:02:26.1]}
11... Nh6 {[%clk 0:02:45]} 12. h3 {[%clk 0:02:22.8]} 12... Nf5 {[%clk
0:02:44.1]} 13. Bf2 {[%clk 0:02:19.2]} 13... O-O {[%clk 0:02:38.7]} 14. exd6
{[%clk 0:02:15]} 14... exd6 {[%clk 0:02:36.9]} 15. O-O {[%clk 0:02:14.6]} 15...
Bd7 {[%clk 0:02:33.3]} 16. Rab1 {[%clk 0:02:01.4]} 16... Bc6 {[%clk 0:02:29.6]}
17. Qd1 {[%clk 0:01:55.6]} 17... Bxg2 {[%clk 0:02:26.3]} 18. Kxg2 {[%clk
0:01:56.5]} 18... b5 {[%clk 0:02:22.8]} 19. axb5 {[%clk 0:01:55.8]} 19... axb5
{[%clk 0:02:23.7]} 20. Ne4 {[%clk 0:01:54.9]} 20... c4 {[%clk 0:02:14.3]} 21.
dxc4 {[%clk 0:01:52.6]} 21... bxc4 {[%clk 0:02:15.2]} 22. c3 {[%clk 0:01:47.8]}
22... Re8 {[%clk 0:02:11.5]} 23. Qd5 {[%clk 0:01:42.9]} 23... Qd7 {[%clk
0:01:59.8]} 24. Rfe1 {[%clk 0:01:21.8]} 24... Rb5 {[%clk 0:01:57.8]} 25. Qxc4
{[%clk 0:00:51.1]} 25... d5 {[%clk 0:01:32]} 26. Qd3 {[%clk 0:00:50.7]} 26...
Rd8 {[%clk 0:01:15.9]} 27. Nd2 {[%clk 0:00:38.6]} 27... Qb7 {[%clk 0:01:13.5]}
28. Kh2 {[%clk 0:00:34.2]} 28... Rxb2 {[%clk 0:01:12.7]} 29. Rxb2 {[%clk
0:00:33.7]} 29... Qxb2 {[%clk 0:01:13.6]} 30. Rb1 {[%clk 0:00:23.9]} 30... Qxc3
{[%clk 0:01:09.4]} 31. Qxc3 {[%clk 0:00:24.4]} 31... Bxc3 {[%clk 0:01:10.1]} 32.
Nf3 {[%clk 0:00:23.9]} 32... d4 {[%clk 0:01:06.7]} 33. Rd1 {[%clk 0:00:23.2]}
33... d3 {[%clk 0:01:04.4]} 34. Bb6 {[%clk 0:00:19.9]} 34... Rd6 {[%clk
0:00:56.3]} 35. Bc7 {[%clk 0:00:19.6]} 35... Rd5 {[%clk 0:00:48]} 36. Be5 {[%clk
0:00:17.2]} 36... Ne3 {[%clk 0:00:46.9]} 37. Rb1 {[%clk 0:00:13.4]} 37... Bxe5
{[%clk 0:00:45]} 38. fxe5 {[%clk 0:00:13]} 38... d2 {[%clk 0:00:44.8]} 39. Rb8+
{[%clk 0:00:13.2]} 39... Kg7 {[%clk 0:00:44.7]} 40. Nxd2 {[%clk 0:00:12.4]}
40... Rxd2+ {[%clk 0:00:45.2]} 41. Kh1 {[%clk 0:00:13]} 41... Nf5 {[%clk
0:00:41.6]} 42. g4 {[%clk 0:00:11.2]} 42... hxg4 {[%clk 0:00:38]} 43. hxg4
{[%clk 0:00:12.1]} 43... Ne3 {[%clk 0:00:38.5]} 44. Rb3 {[%clk 0:00:10.2]} 44...
Nxg4 {[%clk 0:00:38.6]} 45. e6 {[%clk 0:00:08.9]} 45... fxe6 {[%clk 0:00:38.7]}
46. Rg3 {[%clk 0:00:09.5]} 46... Nf2+ {[%clk 0:00:37.2]} 47. Kg1 {[%clk
0:00:10]} 47... Ne4 {[%clk 0:00:33.7]} 48. Re3 {[%clk 0:00:10]} 48... Ng5 {[%clk
0:00:31]} 49. Re5 {[%clk 0:00:09.3]} 49... Nf3+ {[%clk 0:00:31]} 0-1

[Event "Early-Titled-Tuesday-Blitz-February-13-2024"]
[Site "Chess.com"]
[Date "2024.02.13"]
[Round "3"]
[White "PLAYER_2006_M"]
[Black "GelmanAlexander"]
[Result "1-0"]
[WhiteElo "3006"]
[BlackElo "2757"]
[TimeControl "180+1"]
[EndTime "8:32:27 PST"]
[Termination "PLAYER_2006_M won on time"]

1. e4 {[%clk 0:03:00.9]} 1... c5 {[%clk 0:02:59.5]} 2. Nf3 {[%clk 0:03:01.3]}
2... e6 {[%clk 0:02:59.8]} 3. d4 {[%clk 0:03:00]} 3... cxd4 {[%clk 0:03:00]} 4.
Nxd4 {[%clk 0:03:00.7]} 4... a6 {[%clk 0:03:00.7]} 5. Nc3 {[%clk 0:03:01]} 5...
d6 {[%clk 0:03:01.3]} 6. g3 {[%clk 0:02:57.5]} 6... Nf6 {[%clk 0:03:00.9]} 7.
Bg2 {[%clk 0:02:57.9]} 7... Be7 {[%clk 0:03:00.1]} 8. O-O {[%clk 0:02:57.7]}
8... Qc7 {[%clk 0:02:56.9]} 9. Re1 {[%clk 0:02:56.6]} 9... O-O {[%clk
0:02:56.7]} 10. a4 {[%clk 0:02:52.8]} 10... Bd7 {[%clk 0:02:56.5]} 11. Qd2
{[%clk 0:02:49.6]} 11... Nc6 {[%clk 0:02:56.7]} 12. Nxc6 {[%clk 0:02:50]} 12...
Bxc6 {[%clk 0:02:56.4]} 13. b3 {[%clk 0:02:50.5]} 13... b5 {[%clk 0:02:51.5]}
14. Bb2 {[%clk 0:02:32.1]} 14... h6 {[%clk 0:02:37.5]} 15. h3 {[%clk 0:01:34.4]}
15... b4 {[%clk 0:02:24.4]} 16. Na2 {[%clk 0:01:32]} 16... a5 {[%clk 0:02:16.7]}
17. Rad1 {[%clk 0:01:32]} 17... d5 {[%clk 0:02:11.7]} 18. Bxf6 {[%clk
0:01:12.5]} 18... Bxf6 {[%clk 0:02:11.5]} 19. exd5 {[%clk 0:01:13]} 19... Bxd5
{[%clk 0:02:07.7]} 20. Bxd5 {[%clk 0:01:12.7]} 20... exd5 {[%clk 0:01:51]} 21.
Re2 {[%clk 0:01:11]} 21... Ra6 {[%clk 0:01:10.7]} 22. Qf4 {[%clk 0:01:08.3]}
22... Qxf4 {[%clk 0:01:01.4]} 23. gxf4 {[%clk 0:01:06.9]} 23... d4 {[%clk
0:00:55.7]} 24. Nc1 {[%clk 0:01:05.7]} 24... Rc8 {[%clk 0:00:55.3]} 25. Nd3
{[%clk 0:01:04.1]} 25... Rac6 {[%clk 0:00:54.4]} 26. Ne1 {[%clk 0:01:04.7]}
26... Rc5 {[%clk 0:00:48.9]} 27. Kg2 {[%clk 0:01:04.5]} 27... g6 {[%clk
0:00:44.5]} 28. Rdd2 {[%clk 0:01:00.7]} 28... Kg7 {[%clk 0:00:44.6]} 29. Nd3
{[%clk 0:00:56.4]} 29... R5c6 {[%clk 0:00:36.6]} 30. Nb2 {[%clk 0:00:56.7]}
30... d3 {[%clk 0:00:25.9]} 31. Nxd3 {[%clk 0:00:56.2]} 31... Bc3 {[%clk
0:00:24.9]} 32. Rd1 {[%clk 0:00:56.5]} 32... Bf6 {[%clk 0:00:24.6]} 33. Ne1
{[%clk 0:00:56.6]} 33... Bc3 {[%clk 0:00:23.5]} 34. Nf3 {[%clk 0:00:36.5]} 34...
Bf6 {[%clk 0:00:21.9]} 35. Rdd2 {[%clk 0:00:35.4]} 35... Rc3 {[%clk 0:00:19.5]}
36. Ne1 {[%clk 0:00:28.7]} 36... R8c5 {[%clk 0:00:17.7]} 37. Rd3 {[%clk
0:00:26.4]} 37... Rf5 {[%clk 0:00:12.7]} 38. Rxc3 {[%clk 0:00:26.5]} 38... Bxc3
{[%clk 0:00:13]} 39. Nd3 {[%clk 0:00:27.4]} 39... Rd5 {[%clk 0:00:08.9]} 40. Kf3
{[%clk 0:00:27.5]} 40... Bf6 {[%clk 0:00:08.5]} 41. Re8 {[%clk 0:00:25.6]} 41...
Rd7 {[%clk 0:00:05.8]} 42. Rc8 {[%clk 0:00:25.1]} 42... h5 {[%clk 0:00:02.1]}
43. Rc5 {[%clk 0:00:25.6]} 43... Bd8 {[%clk 0:00:01.4]} 44. f5 {[%clk
0:00:22.2]} 1-0